[Event "XVIII Orsha GM 2020"]
[Site "Orsha"]
[Date "2020.01.19"]
[Round "3.5"]
[White "Teterev, Vitaly"]
[Black "Bryakin, Mikhail"]
[Result "1/2-1/2"]
[ECO "A11"]
[WhiteElo "2476"]
[BlackElo "2442"]
[Annotator "ChessBase"]
[PlyCount "105"]
[EventDate "2020.01.18"]
[EventType "tourn"]
[EventCountry "BLR"]
[SourceTitle "playchess.com"]
[Source "ChessBase"]
[SourceQuality "1"]
[TimeControl "5400+30"]

1. Nf3 {[%emt 0:00:00]} d5 {[%emt 0:00:00]} 2. g3 {[%emt 0:00:06]} Nf6 {[%emt 0:00:00]} 3. Bg2 {[%emt 0:00:16]} c6 {[%emt 0:00:18]} 4. O-O {[%emt 0:00:30]} Bf5 {[%emt 0:00:17]} 5. c4 {[%emt 0:00:23]} e6 {[%emt 0:00:13]} 6. cxd5 {[%emt 0:00:22]} exd5 {[%emt 0:01:22]} 7. d3 {[%emt 0:01:27]} Be7 {[%emt 0:00:19]} 8. Qb3 {[%emt 0:01:53]} Qb6 {[%emt 0:00:26]} 9. Qc2 {[%emt 0:00:01]} Nbd7 {[%emt 0:01:30]} 10. Nc3 {[%emt 0:01:27]} O-O {[%emt 0:01:28]} 11. e4 {[%emt 0:02:20]} dxe4 {[%emt 0:03:24]} 12. dxe4 {[%emt 0:00:06]} Bg6 {[%emt 0:00:14]} 13. Be3 {[%emt 0:04:21]} Qa5 {[%emt 0:01:32]} 14. a3 {[%emt 0:01:10]} Nd5 {[%emt 0:02:18]} 15. Bd2 {[%emt 0:04:27]} Qb6 {[%emt 0:08:58]} 16. Na4 {[%emt 0:05:15]} Qc7 {[%emt 0:04:42]} 17. Rfe1 {[%emt 0:03:29]} Rfe8 {[%emt 0:06:39]} 18. Qb3 {[%emt 0:14:13]} N5b6 {[%emt 0:05:09]} 19. Rad1 {[%emt 0:08:23]} Nxa4 {[%emt 0:02:00]} 20. Qxa4 {[%emt 0:00:27]} Nc5 {[%emt 0:02:19]} 21. Qc2 {[%emt 0:03:22]} Rad8 {[%emt 0:05:56]} 22. Bf4 {[%emt 0:01:44]} Qb6 {[%emt 0:08:19]} 23. Ne5 {[%emt 0:02:06]} Qb3 {[%emt 0:13:05]} 24. Qxb3 {[%emt 0:07:54]} Nxb3 {[%emt 0:00:02]} 25. Nxg6 {[%emt 0:02:51]} hxg6 {[%emt 0:01:17]} 26. Bc7 {[%emt 0:07:46]} Rd4 {[%emt 0:03:55]} 27. Rxd4 {[%emt 0:01:49]} Nxd4 {[%emt 0:00:02]} 28. Rd1 {[%emt 0:00:36]} Ne6 {[%emt 0:01:01]} 29. Be5 {[%emt 0:05:18]} Rd8 {[%emt 0:03:21]} 30. Rxd8+ {[%emt 0:00:46]} Bxd8 {[%emt 0:00:01]} 31. Kf1 {[%emt 0:04:16]} g5 {[%emt 0:03:02]} 32. Ke2 {[%emt 0:02:26]} Kf8 {[%emt 0:00:13]} 33. Bh3 {[%emt 0:00:52]} Bc7 {[%emt 0:01:15]} 34. Bc3 {[%emt 0:01:19]} g6 {[%emt 0:02:59]} 35. Bxe6 {[%emt 0:04:07]} fxe6 {[%emt 0:00:01]} 36. Bd4 {[%emt 0:00:26]} g4 {[%emt 0:03:33]} 37. Bxa7 {[%emt 0:01:23]} b6 {[%emt 0:00:14]} 38. a4 {[%emt 0:00:33]} Ke7 {[%emt 0:01:03]} 39. Ke3 {[%emt 0:03:01]} Kd7 {[%emt 0:01:38]} 40. e5 {[%emt 0:01:26]} c5 {[%emt 0:06:15]} 41. a5 {[%emt 0:02:15]} bxa5 {[%emt 0:00:41]} 42. Bxc5 {[%emt 0:00:40]} Bxe5 {[%emt 0:01:05]} 43. b3 {[%emt 0:01:32]} Kc6 {[%emt 0:00:26]} 44. Be7 {[%emt 0:00:19]} Bd6 {[%emt 0:01:51]} 45. Bd8 {[%emt 0:00:46]} Kb5 {[%emt 0:00:50]} 46. f3 {[%emt 0:00:36]} gxf3 {[%emt 0:00:09]} 47. Kxf3 {[%emt 0:00:12]} Kb4 {[%emt 0:02:51]} 48. Ke4 {[%emt 0:01:04]} Kxb3 {[%emt 0:00:36]} 49. Bxa5 {[%emt 0:00:15]} Kc4 {[%emt 0:00:29]} 50. Be1 {[%emt 0:01:45]} Kc5 {[%emt 0:00:30]} 51. h4 {[%emt 0:00:30]} Kc6 {[%emt 0:00:19]} 52. g4 {[%emt 0:00:32]} Kd7 {[%emt 0:00:12]} 53. h5 {[%emt 0:00:07]} 1/2-1/2

[Event "XVIII Orsha GM 2020"]
[Site "Orsha"]
[Date "2020.01.20"]
[Round "4.3"]
[White "Pang, Tao"]
[Black "Zarubitski, Viachaslau"]
[Result "1-0"]
[ECO "E19"]
[WhiteElo "2367"]
[BlackElo "2451"]
[Annotator "RC"]
[PlyCount "129"]
[EventDate "2020.01.18"]
[EventType "tourn"]
[EventCountry "BLR"]
[SourceTitle "playchess.com"]
[Source "ChessBase"]
[SourceQuality "1"]
[TimeControl "5400+30"]

1. Nf3 {[%emt 0:00:00]} Nf6 {[%emt 0:00:00]} 2. c4 {[%emt 0:00:16]} b6 {[%emt 0:00:55]} 3. g3 {[%emt 0:02:47]} Bb7 {[%emt 0:00:05]} 4. Bg2 {[%emt 0:00:03]} e6 {[%emt 0:01:40]} 5. O-O {[%emt 0:00:40]} Be7 {[%emt 0:00:17]} 6. d4 {[%emt 0:00:49]} O-O {[%emt 0:00:15]} 7. Nc3 {[%emt 0:01:02]} Ne4 {[%emt 0:00:53]} 8. Qc2 {[%emt 0:04:27]} Nxc3 {[%emt 0:00:35]} 9. Qxc3 {[%emt 0:00:05]} d6 {[%emt 0:02:24]} 10. b4 {[%emt 0:04:26]} a5 {[%emt 0:05:01]} 11. b5 {[%emt 0:00:53]} Nd7 {[%emt 0:02:29]} 12. Bb2 {[%emt 0:05:12]} Bf6 {[%emt 0:02:47]} 13. Qc2 {[%emt 0:05:02]} g6 {[%emt 0:00:51]} 14. Rfd1 {[%emt 0:03:55]} Qe7 {[%emt 0:06:58]} 15. Ne5 {[%emt 0:08:18]} dxe5 {[%emt 0:08:13]} 16. Bxb7 {[%emt 0:00:21]} Rab8 {[%emt 0:00:45]} 17. Bc6 {[%emt 0:06:44]} exd4 {[%emt 0:00:23]} 18. Bxd4 {[%emt 0:02:17]} Bxd4 {[%emt 0:07:59]} 19. Rxd4 {[%emt 0:00:01]} Nc5 {[%emt 0:00:19]} 20. Rad1 {[%emt 0:03:36]} Qf6 {[%emt 0:00:39]} 21. Qd2 {[%emt 0:03:11]} Kg7 {[%emt 0:01:29]} 22. Kg2 {[%emt 0:01:32]} Qe5 {[%emt 0:03:03]} 23. h4 {[%emt 0:01:57]} h6 {[%emt 0:11:58]} 24. e4 {[%emt 0:20:23]} Qf6 {[%emt 0:02:40]} 25. Qe3 {[%emt 0:01:08]} Rfd8 {[%emt 0:14:33]} 26. e5 {[%emt 0:00:24]} Qe7 {[%emt 0:00:01]} 27. Qd2 {[%emt 0:03:22]} Rxd4 {[%emt 0:00:28]} 28. Qxd4 {[%emt 0:00:01]} Rf8 {[%emt 0:04:14]} 29. Rd2 {[%emt 0:03:25]} Rg8 {[%emt 0:00:45]} 30. Rd1 {[%emt 0:01:33]} Rh8 {[%emt 0:03:15]} 31. Rd2 {[%emt 0:03:04]} Rf8 {[%emt 0:00:14]} 32. Kg1 {[%emt 0:01:09]} Rg8 {[%emt 0:00:32]} 33. Kg2 {[%emt 0:00:09]} Rf8 {[%emt 0:01:19]} 34. Kg1 {[%emt 0:00:07]} f5 {[%emt 0:01:32]} 35. exf6+ {[%emt 0:00:14]} Qxf6 {[%emt 0:00:10]} 36. Qe3 {[%emt 0:00:16]} Kh7 {[%emt 0:03:31]} 37. Kg2 {[%emt 0:00:47]} Rd8 {[%emt 0:01:43]} 38. Rxd8 {[%emt 0:00:15]} Qxd8 {[%emt 0:00:01]} 39. Qe5 {[%emt 0:00:21]} Qe7 {[%emt 0:00:21]} 40. h5 {[%emt 0:00:19]} gxh5 {[%emt 0:05:49]} 41. Qxh5 {[%emt 0:00:54]} Qf6 {[%emt 0:00:58]} 42. Qe8 {[%emt 0:01:02]} Kg7 {[%emt 0:00:26]} 43. f4 {[%emt 0:03:31]} Qb2+ {[%emt 0:01:19]} 44. Kh3 {[%emt 0:00:05]} Qf6 {[%emt 0:00:05]} 45. Kg2 {[%emt 0:00:03]} Qf8 {[%emt 0:03:09]} 46. Qh5 {[%emt 0:00:20]} Qf5 {[%emt 0:00:07]} 47. Qe8 {[%emt 0:00:40]} Qc2+ {[%emt 0:01:19]} 48. Kh3 {[%emt 0:00:03]} Qf5+ {[%emt 0:00:14]} 49. Kg2 {[%emt 0:00:04]} Qf6 {[%emt 0:00:02]} 50. Kh2 {[%emt 0:01:25]} Qf8 {[%emt 0:02:51]} 51. Qh5 {[%emt 0:00:03]} Qf6 {[%emt 0:01:33]} 52. Qe8 {[%emt 0:00:09]} Qf8 {[%emt 0:00:03]} 53. Qh5 {[%emt 0:00:03]} Qf5 {[%emt 0:00:30]} 54. Qe8 {[%emt 0:00:15]} Qf7 {[%emt 0:00:33]} 55. Qd8 {[%emt 0:00:11]} Qh5+ {[%emt 0:00:41]} 56. Kg1 {[%emt 0:00:07]} Qf7 {[%emt 0:01:28]} 57. Be8 {[%emt 0:01:50]} Qf6 {[%emt 0:00:54]} 58. Qxc7+ {[%emt 0:00:02]} Kf8 {[%emt 0:00:04]} 59. Bh5 {[%emt 0:01:54]} a4 {[%emt 0:01:09]} 60. Qxb6 {[%emt 0:01:09]} Qa1+ {[%emt 0:00:57]} 61. Kg2 {[%emt 0:00:12]} Qxa2+ {[%emt 0:00:27]} 62. Kh3 {[%emt 0:00:03]} Qxc4 {[%emt 0:00:25]} 63. Qd8+ {[%emt 0:00:26]} Kg7 {[%emt 0:00:01]} 64. Qe7+ {[%emt 0:00:06]} Kh8 {[%emt 0:00:11]} 65. Qf6+ {[%emt 0:00:03]} 1-0